[Event "*** Titled Tuesday 3|2 Blitz"]
[Site "Chess.com"]
[Date "2016.03.01"]
[Round "9"]
[White "MateusViageiro"]
[Black "chessdude"]
[Result "0-1"]
[WhiteElo "2236"]
[BlackElo "2369"]
[TimeControl "180+2"]
[EndTime "13:37:55 PST"]
[Termination "chessdude won by resignation"]

1. e4 {[%clk 0:03:01.9]} 1... c5 {[%clk 0:01:15.2]} 2. Nf3 {[%clk 0:02:59.9]}
2... d6 {[%clk 0:01:15.5]} 3. d4 {[%clk 0:03:00.2]} 3... cxd4 {[%clk 0:01:17.2]}
4. Nxd4 {[%clk 0:03:01.5]} 4... Nf6 {[%clk 0:01:18.5]} 5. Nc3 {[%clk 0:03:02.4]}
5... a6 {[%clk 0:01:18.6]} 6. Be3 {[%clk 0:03:01.1]} 6... e5 {[%clk 0:01:18.8]}
7. Nb3 {[%clk 0:03:01.7]} 7... Be6 {[%clk 0:01:20.2]} 8. f3 {[%clk 0:03:00.9]}
8... h5 {[%clk 0:01:20.9]} 9. Qd2 {[%clk 0:03:01.7]} 9... Nbd7 {[%clk
0:01:22.1]} 10. O-O-O {[%clk 0:03:02.4]} 10... Rc8 {[%clk 0:01:23.7]} 11. Kb1
{[%clk 0:03:02.9]} 11... b5 {[%clk 0:01:25.2]} 12. g3 {[%clk 0:03:03.1]} 12...
Nb6 {[%clk 0:01:21.1]} 13. Na5 {[%clk 0:02:49.5]} 13... b4 {[%clk 0:01:15.9]}
14. Ne2 {[%clk 0:02:41.4]} 14... Qc7 {[%clk 0:01:14.6]} 15. Nc1 {[%clk
0:02:32.3]} 15... Nc4 {[%clk 0:01:03.5]} 16. Nxc4 {[%clk 0:02:31.6]} 16... Bxc4
{[%clk 0:01:04.3]} 17. Bxc4 {[%clk 0:02:21.8]} 17... Qxc4 {[%clk 0:01:05]} 18.
Bg5 {[%clk 0:02:18.4]} 18... Be7 {[%clk 0:01:05.8]} 19. Qd3 {[%clk 0:02:11.8]}
19... Qxd3 {[%clk 0:01:00.8]} 20. Nxd3 {[%clk 0:02:10.7]} 20... a5 {[%clk
0:01:01]} 21. Bxf6 {[%clk 0:02:10.8]} 21... Bxf6 {[%clk 0:00:58.1]} 22. Nf2
{[%clk 0:02:03.7]} 22... Ke7 {[%clk 0:00:55.6]} 23. Rd5 {[%clk 0:02:04.3]} 23...
Rc5 {[%clk 0:00:55.7]} 24. Rhd1 {[%clk 0:02:01.9]} 24... Rhc8 {[%clk 0:00:56.6]}
25. R1d2 {[%clk 0:01:55.7]} 25... Bg5 {[%clk 0:00:49.9]} 26. Rxc5 {[%clk
0:01:50.8]} 26... Rxc5 {[%clk 0:00:46.4]} 27. Re2 {[%clk 0:01:51.2]} 27... h4
{[%clk 0:00:43.2]} 28. Nd3 {[%clk 0:01:45.9]} 28... Rc8 {[%clk 0:00:43.5]} 29.
g4 {[%clk 0:01:44.5]} 29... h3 {[%clk 0:00:42.8]} 30. b3 {[%clk 0:01:44.3]}
30... Ke6 {[%clk 0:00:41.4]} 31. Re1 {[%clk 0:01:40.6]} 31... Bf4 {[%clk
0:00:42.2]} 32. Re2 {[%clk 0:01:38.4]} 32... g6 {[%clk 0:00:41.1]} 33. Kb2
{[%clk 0:01:38.1]} 33... Bg5 {[%clk 0:00:34.9]} 34. a3 {[%clk 0:01:38.7]} 34...
Rb8 {[%clk 0:00:33.9]} 35. axb4 {[%clk 0:01:38.2]} 35... axb4 {[%clk 0:00:35.2]}
36. Rf2 {[%clk 0:01:35.3]} 36... Bf4 {[%clk 0:00:36.1]} 37. Nxf4+ {[%clk
0:01:34.6]} 37... exf4 {[%clk 0:00:37]} 38. Rd2 {[%clk 0:01:33.9]} 38... Rc8
{[%clk 0:00:37.6]} 39. Rd3 {[%clk 0:01:32.3]} 39... Rc5 {[%clk 0:00:38.4]} 40.
c3 {[%clk 0:01:32.4]} 40... bxc3+ {[%clk 0:00:37.5]} 41. Rxc3 {[%clk 0:01:33.3]}
41... Rb5 {[%clk 0:00:36.8]} 42. Rc4 {[%clk 0:01:32.5]} 42... d5 {[%clk
0:00:34.8]} 43. exd5+ {[%clk 0:01:32.3]} 43... Rxd5 {[%clk 0:00:36]} 44. Re4+
{[%clk 0:01:27.2]} 44... Kf6 {[%clk 0:00:22.1]} 45. Kc3 {[%clk 0:01:27]} 45...
Kg5 {[%clk 0:00:18.6]} 46. b4 {[%clk 0:01:27]} 46... Rd1 {[%clk 0:00:19.3]} 47.
b5 {[%clk 0:01:22.6]} 47... Rc1+ {[%clk 0:00:10.7]} 48. Kb2 {[%clk 0:01:13.1]}
48... Rc5 {[%clk 0:00:11.5]} 49. Rb4 {[%clk 0:01:09.5]} 49... f5 {[%clk
0:00:12.7]} 50. gxf5 {[%clk 0:01:08.2]} 50... Kxf5 {[%clk 0:00:13.4]} 51. b6
{[%clk 0:01:09]} 51... Rc8 {[%clk 0:00:14.5]} 52. b7 {[%clk 0:01:10]} 52... Rb8
{[%clk 0:00:15.8]} 53. Kc3 {[%clk 0:01:11]} 53... g5 {[%clk 0:00:17.2]} 54. Kd3
{[%clk 0:01:11.8]} 54... Rd8+ {[%clk 0:00:18.3]} 55. Ke2 {[%clk 0:01:12.5]}
55... Rb8 {[%clk 0:00:18.3]} 56. Rb5+ {[%clk 0:01:13.5]} 56... Kf6 {[%clk
0:00:19.5]} 57. Kd3 {[%clk 0:01:14.4]} 57... Rd8+ {[%clk 0:00:21.1]} 58. Ke4
{[%clk 0:01:14.9]} 58... Re8+ {[%clk 0:00:22.3]} 59. Kd4 {[%clk 0:01:15.2]}
59... Rb8 {[%clk 0:00:23.7]} 60. Kd5 {[%clk 0:01:15.9]} 60... g4 {[%clk
0:00:23.8]} 61. fxg4 {[%clk 0:01:15.6]} 61... f3 {[%clk 0:00:25.3]} 62. Rb3
{[%clk 0:01:16.4]} 62... Kg5 {[%clk 0:00:23.1]} 63. Kc6 {[%clk 0:01:12.6]} 63...
Kxg4 {[%clk 0:00:22.7]} 64. Rb2 {[%clk 0:01:13.6]} 64... Kf4 {[%clk 0:00:20.7]}
65. Kc7 {[%clk 0:01:12.5]} 65... Rxb7+ {[%clk 0:00:20.4]} 66. Kxb7 {[%clk
0:01:11.6]} 66... Ke3 {[%clk 0:00:21.8]} 67. Rb3+ {[%clk 0:01:10.6]} 67... Ke2
{[%clk 0:00:19.8]} 68. Rb2+ {[%clk 0:01:10.1]} 68... Kf1 {[%clk 0:00:20.3]} 69.
Kc6 {[%clk 0:01:09.5]} 69... f2 {[%clk 0:00:20.7]} 70. Kd5 {[%clk 0:01:07.2]}
70... Kg1 {[%clk 0:00:21.9]} 71. Rb1+ {[%clk 0:01:04.6]} 71... Kxh2 {[%clk
0:00:20.3]} 72. Ke4 {[%clk 0:01:03.1]} 72... Kg2 {[%clk 0:00:21.5]} 73. Kf4
{[%clk 0:00:59.5]} 73... h2 {[%clk 0:00:19.9]} 74. Ke3 {[%clk 0:00:56.7]} 74...
f1=Q {[%clk 0:00:19.3]} 75. Rxf1 {[%clk 0:00:56.2]} 75... Kxf1 {[%clk
0:00:20.1]} 0-1

[Event "*** Titled Tuesday 3|2 Blitz"]
[Site "Chess.com"]
[Date "2016.03.01"]
[Round "9"]
[White "Mischuk_D"]
[Black "jk13"]
[Result "0-1"]
[WhiteElo "2520"]
[BlackElo "2458"]
[TimeControl "180+2"]
[EndTime "13:37:56 PST"]
[Termination "jk13 won by resignation"]

1. e4 {[%clk 0:02:52.6]} 1... e5 {[%clk 0:03:00.8]} 2. Nf3 {[%clk 0:02:53.2]}
2... Nc6 {[%clk 0:03:02.5]} 3. Bb5 {[%clk 0:02:54.1]} 3... Nf6 {[%clk 0:03:04]}
4. O-O {[%clk 0:02:54.2]} 4... Nxe4 {[%clk 0:03:05]} 5. Re1 {[%clk 0:02:54.9]}
5... Nd6 {[%clk 0:03:04.7]} 6. Nxe5 {[%clk 0:02:51.5]} 6... Be7 {[%clk 0:03:06]}
7. Bf1 {[%clk 0:02:51]} 7... Nf5 {[%clk 0:03:07.2]} 8. c3 {[%clk 0:02:48.5]}
8... Nxe5 {[%clk 0:03:08.3]} 9. Rxe5 {[%clk 0:02:48.3]} 9... d6 {[%clk
0:03:09.9]} 10. Re1 {[%clk 0:02:49]} 10... O-O {[%clk 0:03:10.9]} 11. d4 {[%clk
0:02:50]} 11... d5 {[%clk 0:03:12.6]} 12. Nd2 {[%clk 0:02:48.7]} 12... Bf6
{[%clk 0:03:12.8]} 13. Nf3 {[%clk 0:02:49.6]} 13... Ne7 {[%clk 0:03:13.5]} 14.
h3 {[%clk 0:02:50.7]} 14... Ng6 {[%clk 0:03:14.6]} 15. Bd3 {[%clk 0:02:48.4]}
15... c6 {[%clk 0:03:13.1]} 16. a4 {[%clk 0:02:43.8]} 16... a5 {[%clk
0:03:12.1]} 17. Bd2 {[%clk 0:02:44.9]} 17... Re8 {[%clk 0:03:09.8]} 18. Qc2
{[%clk 0:02:42.2]} 18... Bd7 {[%clk 0:03:08.8]} 19. Ne5 {[%clk 0:02:31.2]} 19...
Nxe5 {[%clk 0:03:06.3]} 20. dxe5 {[%clk 0:02:32.3]} 20... Bxe5 {[%clk
0:03:06.4]} 21. Bxh7+ {[%clk 0:02:33]} 21... Kh8 {[%clk 0:03:07.4]} 22. Bf5
{[%clk 0:02:33.8]} 22... Bxf5 {[%clk 0:03:04.2]} 23. Qxf5 {[%clk 0:02:33.9]}
23... Qf6 {[%clk 0:03:05.8]} 24. Qh5+ {[%clk 0:02:27.9]} 24... Kg8 {[%clk
0:03:06.1]} 25. Bg5 {[%clk 0:02:27.4]} 25... Qf5 {[%clk 0:03:03.9]} 26. Qh4
{[%clk 0:02:23.7]} 26... Re6 {[%clk 0:02:56.6]} 27. Be3 {[%clk 0:02:18.2]} 27...
Rae8 {[%clk 0:02:51.8]} 28. Rad1 {[%clk 0:02:13.4]} 28... Bc7 {[%clk 0:02:49.3]}
29. Kf1 {[%clk 0:02:10.6]} 29... Qc2 {[%clk 0:02:24.9]} 30. Rd2 {[%clk
0:02:07.4]} 30... Qb3 {[%clk 0:02:24.6]} 31. Qg4 {[%clk 0:01:47.9]} 31... R8e7
{[%clk 0:02:18.7]} 32. Rde2 {[%clk 0:01:48.1]} 32... Bd6 {[%clk 0:02:01.2]} 33.
h4 {[%clk 0:01:48.6]} 33... Bc5 {[%clk 0:01:45.6]} 34. Bxc5 {[%clk 0:01:44.5]}
34... Rxe2 {[%clk 0:01:44.3]} 35. Bxe7 {[%clk 0:01:45.4]} 35... Rxe1+ {[%clk
0:01:24]} 36. Kxe1 {[%clk 0:01:46.4]} 36... Qxb2 {[%clk 0:01:25.8]} 37. Qc8+
{[%clk 0:01:42.7]} 37... Kh7 {[%clk 0:01:26.3]} 38. Qf5+ {[%clk 0:01:43.5]}
38... Kg8 {[%clk 0:01:27.2]} 39. Qe5 {[%clk 0:01:40.2]} 39... Qa1+ {[%clk
0:01:16.4]} 40. Ke2 {[%clk 0:01:40.5]} 40... Qxa4 {[%clk 0:01:18.3]} 41. h5
{[%clk 0:01:40.3]} 41... Qg4+ {[%clk 0:01:15.6]} 42. Kd2 {[%clk 0:01:18]} 42...
Qxg2 {[%clk 0:01:15.1]} 43. Bc5 {[%clk 0:01:19.1]} 43... Qf3 {[%clk 0:00:43.6]}
44. Bd4 {[%clk 0:01:17.5]} 44... f6 {[%clk 0:00:35.6]} 45. Qe8+ {[%clk
0:01:18.3]} 45... Kh7 {[%clk 0:00:36.9]} 46. Qg6+ {[%clk 0:01:19]} 46... Kg8
{[%clk 0:00:35.9]} 47. h6 {[%clk 0:01:04.5]} 47... Qf4+ {[%clk 0:00:36.9]} 48.
Be3 {[%clk 0:01:05.7]} 48... Qc7 {[%clk 0:00:38.6]} 49. Bf4 {[%clk 0:01:01.9]}
49... Qxf4+ {[%clk 0:00:36.5]} 50. Kd1 {[%clk 0:00:59.4]} 50... Qxh6 {[%clk
0:00:33.4]} 51. Qe8+ {[%clk 0:01:00.3]} 51... Kh7 {[%clk 0:00:34.3]} 52. Qa8
{[%clk 0:01:01.2]} 52... Qh5+ {[%clk 0:00:31.7]} 53. Kd2 {[%clk 0:01:01]} 53...
Qg5+ {[%clk 0:00:32.1]} 54. Ke2 {[%clk 0:01:00.7]} 54... Qg4+ {[%clk 0:00:32.9]}
55. Kd2 {[%clk 0:01:01.8]} 55... Qf4+ {[%clk 0:00:33.9]} 56. Ke2 {[%clk
0:01:03]} 56... Qe4+ {[%clk 0:00:35.4]} 57. Kd2 {[%clk 0:01:04.2]} 57... a4
{[%clk 0:00:35.1]} 58. Qxb7 {[%clk 0:01:04.2]} 58... c5 {[%clk 0:00:36.2]} 59.
Qa8 {[%clk 0:01:04.6]} 59... f5 {[%clk 0:00:30.1]} 60. Qa7 {[%clk 0:00:59.9]}
60... c4 {[%clk 0:00:23.2]} 61. Kc1 {[%clk 0:00:55.5]} 61... Qe1+ {[%clk
0:00:22.1]} 62. Kc2 {[%clk 0:00:55.5]} 62... Qe2+ {[%clk 0:00:22.9]} 63. Kc1
{[%clk 0:00:54.2]} 63... Qd3 {[%clk 0:00:22.9]} 64. Qa5 {[%clk 0:00:54.5]} 64...
Qf1+ {[%clk 0:00:21.8]} 65. Kb2 {[%clk 0:00:55.6]} 65... Qxf2+ {[%clk
0:00:23.6]} 66. Ka3 {[%clk 0:00:57.1]} 66... Qf3 {[%clk 0:00:23.2]} 67. Kxa4
{[%clk 0:00:56.5]} 67... Qe4 {[%clk 0:00:24.9]} 68. Qd8 {[%clk 0:00:55.8]} 68...
Qf3 {[%clk 0:00:20.1]} 69. Kb4 {[%clk 0:00:56.5]} 69... f4 {[%clk 0:00:21.1]}
70. Qh4+ {[%clk 0:00:52.5]} 70... Kg6 {[%clk 0:00:21.9]} 71. Qe7 {[%clk
0:00:53.5]} 71... Qe4 {[%clk 0:00:20.3]} 72. Qd6+ {[%clk 0:00:50.6]} 72... Kh5
{[%clk 0:00:20]} 73. Qf8 {[%clk 0:00:49.6]} 73... g5 {[%clk 0:00:21]} 74. Qf7+
{[%clk 0:00:49.1]} 74... Kg4 {[%clk 0:00:22.4]} 75. Qd7+ {[%clk 0:00:49.2]}
75... Kg3 {[%clk 0:00:23.4]} 76. Qg7 {[%clk 0:00:48.2]} 76... g4 {[%clk
0:00:24.8]} 77. Qh6 {[%clk 0:00:49.4]} 77... d4 {[%clk 0:00:23.4]} 78. Kxc4
{[%clk 0:00:48.7]} 78... d3+ {[%clk 0:00:23.5]} 79. Kb3 {[%clk 0:00:49.3]} 79...
d2 {[%clk 0:00:24.6]} 80. Qd6 {[%clk 0:00:48.7]} 80... Qb1+ {[%clk 0:00:25.5]}
81. Kc4 {[%clk 0:00:49.3]} 81... d1=Q {[%clk 0:00:27.4]} 82. Qd2 {[%clk
0:00:50.4]} 82... Qxd2 {[%clk 0:00:27.2]} 0-1